fUSD/lending_fUSD_20240831
["ID","MTS","AMOUNT","RATE_DAILY","PERIOD"]
[336728733,1725085226041,-3314.7,0.0004,120]
[336728734,1725085226095,-608.39,0.0004,120]
[336728735,1725085226148,-1275.11,0.0004,120]
[336728736,1725085226205,-500.0,0.0004,120]
[336728737,1725085226260,-1665.52,0.0004,120]
[336728738,1725085226313,-500.0,0.0004,120]
[336728739,1725085226370,-1855.46,0.0004,120]
[336728740,1725085226425,-500.0,0.0004,120]
[336728741,1725085226478,-500.0,0.0004,120]
[336728742,1725085226531,-572.01,0.0004,120]
[336728743,1725085226585,-213.97795915,0.0004,120]
[336728744,1725085226642,-500.0,0.0004,120]
[336728745,1725085226698,-1905.21,0.0004,120]
[336728746,1725085226754,-1704.35,0.0004,120]
[336728747,1725085226807,-844.24,0.0004,120]
[336728748,1725085226861,-1196.73,0.0004,120]
[336728749,1725085226914,-500.0,0.0004,120]
[336728750,1725085226965,-606.37,0.0004,120]
[336728751,1725085227017,-19494.08,0.0004,120]
[336728752,1725085227072,-1192.62,0.0004,120]
[336728753,1725085227124,-1379.1,0.0004,120]
[336728754,1725085227178,-2076.38,0.0004,120]
[336728755,1725085227232,-2069.4,0.0004,120]
[336728756,1725085227286,-500.0,0.0004,120]
[336728757,1725085227338,-573.28,0.0004,120]
[336728758,1725085227390,-1830.7,0.0004,120]
[336728759,1725085227443,-16344.0,0.0004,120]
[336728760,1725085227493,-500.0,0.0004,120]
[336728761,1725085227546,-936.23,0.0004,120]
[336728762,1725085227598,-505.41,0.0004,120]
[336728763,1725085227653,-500.0,0.0004,120]
[336728764,1725085227707,-500.0,0.0004,120]
[336728765,1725085227758,-500.0,0.0004,120]
[336728766,1725085227809,-500.0,0.0004,120]
[336728767,1725085227862,-565.82,0.0004,120]
[336728768,1725085227914,-500.0,0.0004,120]
[336728769,1725085227964,-1447.27,0.0004,120]
[336728770,1725085228014,-500.0,0.0004,120]
[336728771,1725085228065,-500.0,0.0004,120]
[336728772,1725085228116,-2019.52,0.0004,120]
[336728773,1725085228167,-802.68,0.0004,120]
[336728774,1725085228222,-1846.73,0.0004,120]
[336728775,1725085228276,-500.0,0.0004,120]
[336728776,1725085228330,-500.0,0.0004,120]
[336728777,1725085228384,-6347.53,0.0004,120]
[336728778,1725085228436,-500.0,0.0004,120]
[336728779,1725085228487,-709.12,0.0004,120]
[336728780,1725085228538,-500.0,0.0004,120]
[336728781,1725085228592,-488.62819344,0.0004,120]
[336728782,1725085228646,-1624.05,0.0004,120]
[336728783,1725085228701,-1465.91,0.0004,120]
[336728784,1725085228757,-508.15,0.0004,120]
[336728785,1725085228812,-1510.32,0.0004,120]
[336728786,1725085228868,-1707.44,0.0004,120]
[336728787,1725085228924,-500.0,0.0004,120]
[336728788,1725085228979,-2842.73,0.0004,120]
[336728789,1725085229034,-1745.59,0.0004,120]
[336728790,1725085229086,-500.0,0.0004,120]
[336728791,1725085229136,-1426.61,0.0004,120]
[336728792,1725085229188,-657.37,0.0004,120]
[336728793,1725085229239,-500.0,0.0004,120]
[336728794,1725085229291,-434.73034379,0.0004,120]
[336728795,1725085229345,-829.84,0.0004,120]
[336728796,1725085229398,-500.0,0.0004,120]
[336728797,1725085229449,-695.91,0.0004,120]
[336728798,1725085229503,-508.01,0.0004,120]
[336728799,1725085229557,-500.0,0.0004,120]
[336728800,1725085229609,-7185.61,0.0004,120]
[336728801,1725085229744,-500.0,0.0004,120]
[336728802,1725085229802,-1862.6,0.0004,120]
[336728803,1725085229854,-500.0,0.0004,120]
[336728804,1725085229906,-500.0,0.0004,120]
[336728805,1725085229961,-1694.24,0.0004,120]
[336728806,1725085230011,-500.0,0.0004,120]
[336728807,1725085230064,-9549.71,0.0004,120]
[336728808,1725085230116,-1329.5,0.0004,120]
[336728809,1725085230169,-500.0,0.0004,120]
[336728810,1725085230223,-1254.74,0.0004,120]
[336728811,1725085230277,-500.0,0.0004,120]
[336728812,1725085230331,-701.74,0.0004,120]
[336728813,1725085230387,-17344.61,0.0004,120]
[336728814,1725085230440,-1718.9,0.0004,120]
[336728815,1725085230494,-1599.11,0.0004,120]
[336728816,1725085230552,-1266.46,0.0004,120]
[336728817,1725085230606,-500.0,0.0004,120]
[336728818,1725085230663,-500.0,0.0004,120]
[336728819,1725085230715,-500.0,0.0004,120]
[336728820,1725085230767,-536.3,0.0004,120]
[336728821,1725085230818,-500.0,0.0004,120]
[336728822,1725085230875,-500.0,0.0004,120]
[336728823,1725085230926,-1416.58,0.0004,120]
[336728824,1725085230977,-1344.35,0.0004,120]
[336728825,1725085231029,-500.0,0.0004,120]
[336728826,1725085231083,-1308.79,0.0004,120]
[336728827,1725085231134,-1065.87,0.0004,120]
[336728828,1725085231185,-598.48,0.0004,120]
[336728829,1725085231242,-934.02,0.0004,120]
[336728830,1725085231296,-1376.61,0.0004,120]
[336728831,1725085231351,-2496.8,0.0004,120]
[336728832,1725085231405,-1682.93,0.0004,120]
[336728833,1725085231458,-500.0,0.0004,120]
[336728834,1725085231509,-1537.85,0.0004,120]
[336728835,1725085231561,-500.0,0.0004,120]
[336728836,1725085231610,-264.10466328,0.0004,120]
[336728837,1725085231661,-546.73,0.0004,120]
[336728838,1725085231711,-710.47,0.0004,120]
[336728839,1725085231760,-1026.63,0.0004,120]
[336728840,1725085231810,-500.0,0.0004,120]
[336728841,1725085231860,-1312.14,0.0004,120]
[336728842,1725085231911,-500.0,0.0004,120]
[336728843,1725085231957,-1653.03,0.0004,120]
[336728844,1725085232008,-6675.51,0.0004,120]
[336728845,1725085232057,-500.0,0.0004,120]
[336728846,1725085232104,-500.0,0.0004,120]
[336728847,1725085232154,-500.0,0.0004,120]
[336728848,1725085232202,-500.0,0.0004,120]
[336728849,1725085232252,-802.15,0.0004,120]
[336728850,1725085232302,-522.63,0.0004,120]
[336728851,1725085232353,-500.0,0.0004,120]
[336728852,1725085232405,-500.0,0.0004,120]
[336728853,1725085232458,-500.0,0.0004,120]
[336728854,1725085232510,-520.04,0.0004,120]
[336728855,1725085232562,-6155.51,0.0004,120]
[336728856,1725085232617,-2507.7,0.0004,120]
[336728857,1725085232673,-1148.46,0.0004,120]
[336728858,1725085232724,-500.0,0.0004,120]
[336728859,1725085232778,-548.06920114,0.0004,120]
[336728860,1725085236602,-1000.0,0.00030403,30]
[336728861,1725085236653,-3222.83141563,0.00030403,60]
[336728862,1725085237057,-1000.0,0.00030403,30]
[336728863,1725085237116,-1000.0,0.00030403,30]
[336728864,1725085237168,-1000.0,0.00030403,30]
[336728865,1725085237219,-1000.0,0.00030403,30]
[336728866,1725085237274,-355.87192444,0.00030403,30]
[336728867,1725085237328,-1000.0,0.00030403,30]
[336728868,1725085237380,-1000.0,0.00030403,30]
[336728869,1725085237432,-1000.0,0.00030403,30]
[336728870,1725085237484,-1000.0,0.00030403,30]
[336728871,1725085237534,-1000.0,0.00030403,30]
[336728872,1725085237583,-379.81194782,0.00030403,30]
[336728873,1725085237635,-160.0,0.00030403,30]
[336728874,1725085237685,-1000.0,0.00030403,30]
[336728875,1725085237734,-3036.10057432,0.00030403,30]
[336728876,1725085237786,-488.53275532,0.00030403,30]
[336728877,1725085237835,-6527.43784192,0.00030403,30]
[336728878,1725085237884,-530.11549534,0.00030403,60]
[336728879,1725085237933,-365.11739162,0.00030403,30]
[336728880,1725085237983,-837.55221232,0.00030403,30]
[336728881,1725085238030,-1000.0,0.00030403,30]
[336728882,1725085238079,-2647.34390582,0.00030403,30]
[336728883,1725085238129,-2268.86832477,0.00030403,30]
[336728884,1725085238180,-3935.26192637,0.00030403,30]
[336728885,1725085238229,-3633.00431521,0.00030403,30]
[336728886,1725085238284,-1923.51549423,0.00030403,30]
[336728887,1725085238337,-1480.77349598,0.00030403,30]
[336728888,1725085238391,-706.77155607,0.00030403,30]
[336728889,1725085238444,-374.69741699,0.00030403,30]
[336728890,1725085238499,-283.21761832,0.00030403,30]
[336728891,1725085238551,-482.92097312,0.00030403,30]
[336728892,1725085238606,-253.53629881,0.00030403,30]
[336728893,1725085238662,-2500.0,0.00030403,30]
[336728894,1725085238717,-820.39152367,0.00030403,30]
[336728895,1725085238770,-3000.0,0.00030403,30]
[336728896,1725085238825,-828.23824609,0.00030403,30]
[336728897,1725085238877,-365.0223637,0.00030403,32]
[336728898,1725085238927,-892.13069743,0.00030403,30]
[336728899,1725085238979,-2024.80308567,0.00030403,60]
[336728900,1725085239033,-4397.00091084,0.00030403,30]
[336728901,1725085239083,-199.67711692,0.00030403,30]
[336728902,1725085239135,-921.649662,0.00030403,30]
[336728903,1725085239186,-336.86009201,0.00030403,30]
[336728904,1725085239245,-5335.49467396,0.00030403,30]
[336728905,1725085239302,-4717.62917743,0.00030403,30]
[336728906,1725085239358,-1524.04228841,0.00030403,30]
[336728907,1725085239414,-500.87825558,0.00030403,30]
[336728908,1725085239470,-4458.67920204,0.00030403,120]
[336728909,1725085239522,-2941.60251587,0.00030403,30]
[336728910,1725085239574,-911.01254187,0.00030403,30]
[336728911,1725085239629,-847.76047218,0.00030403,30]
[336728912,1725085239683,-2738.47781284,0.00030403,30]
[336728913,1725085239734,-195.24495698,0.00030403,30]
[336728914,1725085239790,-459.12202491,0.00030403,30]
[336728915,1725085239847,-1911.26774674,0.00030403,30]
[336728916,1725085239899,-505.71594523,0.00030403,30]
[336728917,1725085239949,-255.73253119,0.00030403,30]
[336728918,1725085240000,-2573.37531059,0.00030403,30]
[336728919,1725085240050,-1694.9334798,0.00030403,30]
[336728920,1725085240100,-288.5775822,0.00030403,31]
[336728921,1725085240151,-2224.88612575,0.00030403,30]
[336728922,1725085240202,-2992.71499695,0.00030403,30]
[336728923,1725085240253,-2167.20863388,0.00030403,30]
[336728924,1725085240309,-13864.43646074,0.00030403,60]
[336728925,1725085240363,-1403.14495037,0.00030403,30]
[336728926,1725085240415,-1946.12539632,0.00030403,30]
[336728927,1725085240468,-1097.27976491,0.00030403,30]
[336728928,1725085240522,-4644.37093858,0.00030403,120]
[336728929,1725085240575,-289.47774586,0.00030403,30]
[336728930,1725085240629,-2105.88376658,0.00030403,30]
[336728931,1725085240681,-228.91490154,0.00030403,60]
[336728932,1725085240732,-266.0,0.00030403,30]
[336728933,1725085240781,-658.82091842,0.00030403,30]
[336728934,1725085240916,-3939.0,0.00030403,30]
[336728935,1725085240969,-2000.0,0.00030403,30]
[336728936,1725085241021,-3000.0,0.00030403,120]
[336728937,1725085241073,-1200.4356321,0.00030403,120]
[336728938,1725085241127,-170.49584053,0.00030403,120]
[336728939,1725085241179,-3131.25100514,0.00030403,120]
[336728940,1725085241232,-999.999999,0.00030403,120]
[336728941,1725085241285,-607.45641632,0.00030403,120]
[336728942,1725085241338,-271.29406056,0.00030403,120]
[336728943,1725085241390,-547.1492807,0.00030403,120]
[336728944,1725085241442,-5987.1518647,0.00030403,30]
[336728945,1725085241495,-479.00329203,0.00030403,120]
[336728946,1725085241550,-6271.75290499,0.00030403,30]
[336728947,1725085241604,-26007.38026365,0.00030403,30]
[336728948,1725085241660,-7696.02728118,0.00030403,120]
[336728949,1725085241711,-36218.42250944,0.00030403,31]
[336728950,1725085241763,-1943.82114291,0.00030403,120]
[336728951,1725085241816,-193.0,0.00030403,30]
[336728952,1725085241870,-193.0,0.00030403,30]
[336728953,1725085241922,-500.0,0.00030403,120]
[336728954,1725085241972,-1069.39872932,0.00030403,30]
[336728955,1725085242024,-500.0,0.00030403,30]
[336728956,1725085242076,-2000.0,0.00030403,90]
[336728957,1725085242129,-296474.99490964,0.00030403,30]
[336728958,1725085242180,-1000.0,0.00030403,120]
[336728959,1725085242233,-4640.0,0.00030403,120]
[336728960,1725085242284,-2015.0364017,0.00030403,120]
[336728961,1725085242341,-193.0,0.00030403,30]
[336728962,1725085242394,-665.70041075,0.00030403,30]
[336728963,1725085242444,-1000.0,0.00030403,60]
[336728964,1725085242497,-1000.0,0.00030403,30]
[336728965,1725085242548,-1000.0,0.00030403,60]
[336728966,1725085242598,-2000.0,0.00030403,30]
[336728967,1725085242648,-3157.4228,0.00030403,30]
[336728968,1725085242697,-2053.0,0.00030403,30]
[336728969,1725085242748,-233.78522953,0.00030403,60]
[336728970,1725085242795,-316.77762917,0.00030403,120]
[336728971,1725085242849,-7037.01007478,0.00030403,120]
[336728972,1725085242901,-1000.0,0.00030403,120]
[336728973,1725085242953,-1000.0,0.00030403,30]
[336728974,1725085243005,-1000.0,0.00030403,30]
[336728975,1725085243055,-1039.44,0.00030403,30]
[336728976,1725085243108,-993.0,0.00030403,30]
[336728977,1725085243156,-554.16490947,0.00030403,30]
[336728978,1725085243209,-637.9464771,0.00030403,120]
[336728979,1725085243263,-307.10012743,0.00030403,120]
[336728980,1725085243315,-1000.0,0.00030403,30]
[336728981,1725085243366,-1000.0,0.00030403,30]
[336728982,1725085243421,-1000.0,0.00030403,30]
[336728983,1725085243473,-1000.0,0.00030403,30]
[336728984,1725085243528,-1000.0,0.00030403,30]
[336728985,1725085243580,-1000.0,0.00030403,30]
[336728986,1725085243636,-1000.0,0.00030403,30]
[336728987,1725085243691,-1000.0,0.00030403,30]
[336728988,1725085243744,-1000.0,0.00030403,30]
[336728989,1725085243798,-1000.0,0.00030403,30]
[336728990,1725085243859,-1000.0,0.00030403,30]
[336728991,1725085243916,-1000.0,0.00030403,30]
[336728992,1725085243967,-1000.0,0.00030403,30]
[336728993,1725085244018,-1000.0,0.00030403,30]
[336728994,1725085244066,-1000.0,0.00030403,30]
[336728995,1725085244115,-1000.0,0.00030403,30]
[336728996,1725085244169,-1000.0,0.00030403,30]
[336728997,1725085244220,-1000.0,0.00030403,30]
[336728998,1725085244269,-1000.0,0.00030403,30]
[336728999,1725085244318,-1000.0,0.00030403,30]
[336729000,1725085244369,-1000.0,0.00030403,30]
[336729001,1725085244418,-1000.0,0.00030403,30]
[336729002,1725085244468,-1000.0,0.00030403,30]
[336729003,1725085244516,-1000.0,0.00030403,30]
[336729004,1725085244565,-1000.0,0.00030403,30]
[336729005,1725085244618,-1000.0,0.00030403,30]
[336729006,1725085244670,-1000.0,0.00030403,30]
[336729007,1725085244720,-1000.0,0.00030403,30]
[336729008,1725085244770,-1000.0,0.00030403,30]
[336729009,1725085244817,-1000.0,0.00030403,30]
[336729010,1725085244866,-155.554048,0.00030403,40]
[336729011,1725085244915,-155.554048,0.00030403,40]
[336729012,1725085244965,-150.0,0.00030403,30]
[336729013,1725085245016,-150.0,0.00030403,30]
[336729014,1725085245066,-287.189953,0.00030403,30]
[336729015,1725085252667,-2000.0,0.00011,2]
[336729016,1725085252690,-151.14,0.000111,2]
[336729017,1725085268618,-785.33,0.00038356,120]
[336729018,1725085268672,-500.0,0.00038356,120]
[336729019,1725085268723,-500.0,0.00038356,120]
[336729020,1725085268775,-500.0,0.00038356,120]
[336729021,1725085268828,-500.0,0.00038356,120]
[336729022,1725085268882,-500.0,0.00038356,120]
[336729023,1725085268937,-500.0,0.00038356,120]
[336729024,1725085268991,-500.0,0.00038356,120]
[336729025,1725085269046,-2224.87,0.00038356,120]
[336729026,1725085269101,-500.0,0.00038356,120]
[336729027,1725085269153,-1322.92,0.00038356,120]
[336729028,1725085269207,-544.34477687,0.00038356,120]
[336729029,1725085269263,-2404.44,0.00038356,120]
[336729030,1725085269319,-500.0,0.00038356,120]
[336729031,1725085269373,-901.41,0.00038356,120]
[336729032,1725085269429,-610.01,0.00038356,120]
[336729033,1725085269485,-500.0,0.00038356,120]
[336729034,1725085269541,-729.12,0.00038356,120]
[336729035,1725085269594,-500.0,0.00038356,120]
[336729036,1725085269650,-1979.21,0.00038356,120]
[336729037,1725085269703,-577.81,0.00038356,120]
[336729038,1725085269757,-500.0,0.00038356,120]
[336729039,1725085269816,-500.0,0.00038356,120]
[336729040,1725085269866,-6226.26,0.00038356,120]
[336729041,1725085269920,-666.11,0.00038356,120]
[336729042,1725085269976,-500.0,0.00038356,120]
[336729043,1725085270028,-500.0,0.00038356,120]
[336729044,1725085270078,-500.0,0.00038356,120]
[336729045,1725085270128,-500.0,0.00038356,120]
[336729046,1725085270179,-500.0,0.00038356,120]
[336729047,1725085270231,-2083.88,0.00038356,120]
[336729048,1725085270289,-2247.13,0.00038356,120]
[336729049,1725085270341,-500.0,0.00038356,120]
[336729050,1725085270395,-500.0,0.00038356,120]
[336729051,1725085270446,-500.0,0.00038356,120]
[336729052,1725085270496,-3075.22,0.00038356,120]
[336729053,1725085270546,-2368.94,0.00038356,120]
[336729054,1725085270598,-500.0,0.00038356,120]
[336729055,1725085270650,-500.0,0.00038356,120]
[336729056,1725085270700,-785.33,0.00038904,120]
[336729057,1725085270752,-500.0,0.00038904,120]
[336729058,1725085270804,-500.0,0.00038904,120]
[336729059,1725085270858,-158.40805887,0.00038904,120]
[336729060,1725085270907,-500.0,0.00038904,120]
[336729061,1725085270957,-500.0,0.00038904,120]
[336729062,1725085271007,-500.0,0.00038904,120]
[336729063,1725085271057,-500.0,0.00038904,120]
[336729064,1725085271109,-2224.87,0.00038904,120]
[336729065,1725085271160,-500.0,0.00038904,120]
[336729066,1725085271210,-1322.92,0.00038904,120]
[336729067,1725085271409,-2404.44,0.00038904,120]
[336729068,1725085271463,-500.0,0.00038904,120]
[336729069,1725085271513,-901.41,0.00038904,120]
[336729070,1725085271565,-610.01,0.00038904,120]
[336729071,1725085271617,-336.14719747,0.00038904,120]
[336729072,1725085271669,-729.12,0.00038904,120]
[336729073,1725085271717,-500.0,0.00038904,120]
[336729074,1725085271767,-1979.21,0.00038904,120]
[336729075,1725085271820,-577.81,0.00038904,120]
[336729076,1725085271870,-500.0,0.00038904,120]
[336729077,1725085271918,-500.0,0.00038904,120]
[336729078,1725085271968,-6226.26,0.00038904,120]
[336729079,1725085272019,-666.11,0.00038904,120]
[336729080,1725085272068,-500.0,0.00038904,120]
[336729081,1725085272119,-500.0,0.00038904,120]
[336729082,1725085272170,-500.0,0.00038904,120]
[336729083,1725085272221,-500.0,0.00038904,120]
[336729084,1725085272274,-500.0,0.00038904,120]
[336729085,1725085272323,-2083.88,0.00038904,120]
[336729086,1725085272370,-2247.13,0.00038904,120]
[336729087,1725085272421,-311.81767293,0.00038904,120]
[336729088,1725085272470,-500.0,0.00038904,120]
[336729089,1725085272522,-500.0,0.00038904,120]
[336729090,1725085272573,-3075.22,0.00038904,120]
[336729091,1725085272627,-2368.94,0.00038904,120]
[336729092,1725085272681,-498.5200659,0.00038904,120]
[336729093,1725085272735,-785.33,0.00039452,120]
[336729094,1725085272785,-218.7450432,0.00039452,120]
[336729095,1725085272837,-500.0,0.00039452,120]
[336729096,1725085272889,-500.0,0.00039452,120]
[336729097,1725085272941,-500.0,0.00039452,120]
[336729098,1725085272991,-500.0,0.00039452,120]
[336729099,1725085273041,-500.0,0.00039452,120]
[336729100,1725085273091,-2224.87,0.00039452,120]
[336729101,1725085273140,-500.0,0.00039452,120]
[336729102,1725085273192,-1322.92,0.00039452,120]
[336729103,1725085273247,-2404.44,0.00039452,120]
[336729104,1725085273300,-500.0,0.00039452,120]
[336729105,1725085273354,-901.41,0.00039452,120]
[336729106,1725085273409,-610.01,0.00039452,120]
[336729107,1725085273464,-729.12,0.00039452,120]
[336729108,1725085273518,-500.0,0.00039452,120]
[336729109,1725085273572,-1979.21,0.00039452,120]
[336729110,1725085273625,-577.81,0.00039452,120]
[336729111,1725085273681,-500.0,0.00039452,120]
[336729112,1725085273734,-397.70529559,0.00039452,120]
[336729113,1725085273789,-6226.26,0.00039452,120]
[336729114,1725085273845,-666.11,0.00039452,120]
[336729115,1725085273901,-503.09348625,0.00039452,120]
[336729116,1725085273953,-500.0,0.00039452,120]
[336729117,1725085274010,-500.0,0.00039452,120]
[336729118,1725085274064,-500.0,0.00039452,120]
[336729119,1725085274119,-500.0,0.00039452,120]
[336729120,1725085274174,-2083.88,0.00039452,120]
[336729121,1725085274229,-2247.13,0.00039452,120]
[336729122,1725085274283,-174.13014179,0.00039452,120]
[336729123,1725085274340,-500.0,0.00039452,120]
[336729124,1725085274393,-3075.22,0.00039452,120]
[336729125,1725085274452,-2368.94,0.00039452,120]
[336729126,1725085274507,-1603.72,0.00039726,120]
[336729127,1725085274562,-1603.72,0.00039726,120]
[336729128,1725085274617,-1603.72,0.00039726,120]
[336729129,1725085274673,-6.34079886,0.0004,120]
[336729130,1725085274726,-1325.16,0.0004,120]
[336729131,1725085274780,-795.3,0.0004,120]
[336729132,1725085274834,-1311.27,0.0004,120]
[336729133,1725085274887,-468.15882532,0.0004,120]
[336729134,1725085274944,-492.48556932,0.0004,120]
[336729135,1725085275005,-1407.95,0.0004,120]
[336729136,1725085275062,-500.0,0.0004,120]
[336729137,1725085275117,-1863.91,0.0004,120]
[336729138,1725085275173,-500.0,0.0004,120]
[336729139,1725085275227,-1652.24,0.0004,120]
[336729140,1725085275281,-641.76,0.0004,120]
[336729141,1725085275334,-854.31,0.0004,120]
[336729142,1725085275388,-500.0,0.0004,120]
[336729143,1725085275442,-527.05,0.0004,120]
[336729144,1725085275497,-500.0,0.0004,120]
[336729145,1725085275550,-524.62197278,0.0004,120]
[336729146,1725085275604,-500.0,0.0004,120]
[336729147,1725085275656,-616.77,0.0004,120]
[336729148,1725085275709,-956.29,0.0004,120]
[336729149,1725085275763,-588.71350327,0.0004,120]
[336729150,1725085275822,-2261.76,0.0004,120]
[336729151,1725085275881,-500.0,0.0004,120]
[336729152,1725085275943,-675.48,0.0004,120]
[336729153,1725085275999,-500.0,0.0004,120]
[336729154,1725085276360,-500.0,0.0004,120]
[336729155,1725085276416,-500.0,0.0004,120]
[336729156,1725085276471,-495.95634943,0.0004,120]
[336729157,1725085276524,-979.96,0.0004,120]
[336729158,1725085276579,-532.04,0.0004,120]
[336729159,1725085276632,-1078.05,0.0004,120]
[336729160,1725085276687,-1968.69,0.0004,120]
[336729161,1725085276740,-528.35,0.0004,120]
[336729162,1725085276790,-500.0,0.0004,120]
[336729163,1725085276840,-500.0,0.0004,120]
[336729164,1725085276893,-500.0,0.0004,120]
[336729165,1725085276945,-500.0,0.0004,120]
[336729166,1725085276996,-500.0,0.0004,120]
[336729167,1725085277046,-1332.09,0.0004,120]
[336729168,1725085277096,-500.0,0.0004,120]
[336729169,1725085277147,-876.79,0.0004,120]
[336729170,1725085277197,-500.0,0.0004,120]
[336729171,1725085277250,-1367.12,0.0004,120]
[336729172,1725085277303,-500.0,0.0004,120]
[336729173,1725085277357,-2989.98,0.0004,120]
[336729174,1725085277412,-500.0,0.0004,120]
[336729175,1725085277467,-1307.87,0.0004,120]
[336729176,1725085277521,-500.0,0.0004,120]
[336729177,1725085277571,-500.0,0.0004,120]
[336729178,1725085277626,-1296.01,0.0004,120]
[336729179,1725085277682,-1533.32,0.0004,120]
[336729180,1725085277733,-500.0,0.0004,120]
[336729181,1725085277785,-500.0,0.0004,120]
[336729182,1725085277841,-500.0,0.0004,120]
[336729183,1725085277894,-600.74,0.0004,120]
[336729184,1725085277946,-5814.25,0.0004,120]
[336729185,1725085278000,-629.87,0.0004,120]
[336729186,1725085278054,-1062.71,0.0004,120]
[336729187,1725085278109,-533.34,0.0004,120]
[336729188,1725085278163,-1824.21,0.0004,120]
[336729189,1725085278218,-1015.22,0.0004,120]
[336729190,1725085278276,-500.0,0.0004,120]
[336729191,1725085278333,-629.62828773,0.0004,120]
[336729192,1725085278392,-500.0,0.0004,120]
[336729193,1725085278450,-951.23,0.0004,120]
[336729194,1725085278509,-5481.44,0.0004,120]
[336729195,1725085278566,-894.49,0.0004,120]
[336729196,1725085278624,-842.88,0.0004,120]
[336729197,1725085278680,-267.87405247,0.0004,120]
[336729198,1725085278736,-593.4,0.0004,120]
[336729199,1725085278791,-1186.34,0.0004,120]
[336729200,1725085278845,-677.22,0.0004,120]
[336729201,1725085278900,-314.55609166,0.0004,120]
[336729202,1725085278956,-500.0,0.0004,120]
[336729203,1725085279011,-767.11,0.0004,120]
[336729204,1725085279064,-5075.61,0.0004,120]
[336729205,1725085279120,-597.7127002,0.0004,120]
[336729206,1725085279172,-586.47995768,0.0004,120]
[336729207,1725085279226,-862.19,0.0004,120]
[336729208,1725085279287,-528.15,0.0004,120]
[336729209,1725085279346,-562.28,0.0004,120]
[336729210,1725085279403,-825.37,0.0004,120]
[336729211,1725085279462,-1653.61,0.0004,120]
[336729212,1725085279518,-1753.96,0.0004,120]
[336729213,1725085279573,-2000.96,0.0004,120]
[336729214,1725085279630,-500.0,0.0004,120]
[336729215,1725085279686,-1013.59,0.0004,120]
[336729216,1725085279742,-500.0,0.0004,120]
[336729217,1725085279798,-1776.62,0.0004,120]
[336729218,1725085279855,-500.0,0.0004,120]
[336729219,1725085279909,-500.0,0.0004,120]
[336729220,1725085279964,-500.0,0.0004,120]
[336729221,1725085280018,-3910.3,0.0004,120]
[336729222,1725085280071,-1570.05,0.0004,120]
[336729223,1725085280124,-764.94,0.0004,120]
[336729224,1725085280178,-500.0,0.0004,120]
[336729225,1725085280307,-500.0,0.0004,120]
[336729226,1725085280362,-500.0,0.0004,120]
[336729227,1725085280415,-500.0,0.0004,120]
[336729228,1725085280466,-500.0,0.0004,120]
[336729229,1725085280518,-500.0,0.0004,120]
[336729230,1725085280571,-500.0,0.0004,120]
[336729231,1725085280624,-883.9,0.0004,120]
[336729232,1725085280677,-500.0,0.0004,120]